fUSD/lending_fUSD_20251217
["ID","MTS","AMOUNT","RATE_DAILY","PERIOD"]
[398942717,1766011850147,-500.0,0.00016966,2]
[398942718,1766011850156,-500.0,0.00016966,2]
[398942719,1766011850166,-500.0,0.00016966,2]
[398942720,1766011850175,-500.0,0.00016966,2]
[398942721,1766011850184,-500.0,0.00016966,2]
[398942722,1766011850194,-500.0,0.00016966,2]
[398942723,1766011850203,-500.0,0.00016966,2]
[398942724,1766011850212,-645.50218631,0.00016966,2]
[398942725,1766011850222,-500.0,0.00016966,2]
[398942726,1766011850231,-500.0,0.00016966,2]
[398942727,1766011850240,-500.0,0.00016966,2]
[398942728,1766011850251,-500.0,0.00016966,2]
[398942729,1766011850260,-500.0,0.00016966,2]
[398942730,1766011850270,-500.0,0.00016966,2]
[398942731,1766011850279,-517.52780277,0.00016966,2]
[398942732,1766011850288,-500.0,0.00016966,2]
[398942733,1766011850298,-500.0,0.00016966,2]
[398942734,1766011850307,-500.0,0.00016966,2]
[398942735,1766011850316,-500.0,0.00016966,2]
[398942736,1766011850326,-500.0,0.00016966,2]
[398942737,1766011850335,-500.0,0.00016966,2]
[398942738,1766011850345,-500.0,0.00016966,2]
[398942739,1766011850354,-514.23721699,0.00016966,2]
[398942740,1766011850364,-500.0,0.00016966,2]
[398942741,1766011850386,-500.0,0.00016966,2]
[398942742,1766011850396,-500.0,0.00016966,2]
[398942743,1766011850405,-500.0,0.00016966,2]
[398942744,1766011850414,-500.0,0.00016966,2]
[398942745,1766011850423,-500.0,0.00016966,2]
[398942746,1766011850433,-500.0,0.00016966,2]
[398942747,1766011850443,-500.0,0.00016966,2]
[398942748,1766011850452,-500.0,0.00016966,2]
[398942749,1766011850461,-500.0,0.00016966,2]
[398942750,1766011850471,-286.90864955,0.00016966,2]
[398942751,1766011850480,-500.0,0.00016966,2]
[398942752,1766011850489,-500.0,0.00016966,2]
[398942753,1766011850498,-500.0,0.00016966,2]
[398942754,1766011850513,-500.0,0.00016966,2]
[398942755,1766011850530,-500.0,0.00016966,2]
[398942756,1766011850549,-500.0,0.00016966,2]
[398942757,1766011850560,-150.0,0.00016973,2]
[398942758,1766011850570,-150.0,0.00016973,2]
[398942759,1766011850580,-165.66,0.00016983,2]
[398942760,1766011850589,-500.0,0.00016983,2]
[398942761,1766011850599,-500.0,0.00016986,2]
[398942762,1766011850609,-150.0,0.00016986,2]
[398942763,1766011850619,-277.59164226,0.00016986,2]
[398942764,1766011850628,-150.0,0.00016986,2]
[398942765,1766011850637,-151.17525831,0.00016986,2]
[398942766,1766011850647,-150.65844906,0.00016986,2]
[398942767,1766011850657,-150.00000001,0.00016986,2]
[398942768,1766011850666,-280.62987413,0.00016986,2]
[398942769,1766011850676,-160.8607052,0.00016986,2]
[398942770,1766011850685,-236.30611165,0.00016986,2]
[398942771,1766011850694,-150.0,0.00016986,2]
[398942772,1766011850703,-150.91550183,0.00016986,2]
[398942773,1766011850713,-153.15599333,0.00016986,2]
[398942774,1766011850725,-150.0,0.00016986,2]
[398942775,1766011850741,-150.0,0.00016986,2]
[398942776,1766011850759,-600.0,0.00016986,2]
[398942777,1766011850779,-1242.58655811,0.0001699,2]
[398942778,1766011850790,-1242.58655811,0.0001699,2]
[398942779,1766011850800,-151.0,0.00016994,2]
[398942780,1766011850811,-500.0,0.00016996,2]
[398942781,1766011850821,-500.0,0.00016996,2]
[398942782,1766011850831,-282.25650796,0.00016996,2]
[398942783,1766011851106,-149696.2523359,0.00016997,2]
[398942784,1766011851126,-1523.7193953,0.00016997,2]
[398942785,1766011851136,-82826.697696,0.00016997,2]
[398942786,1766011851146,-110435.5969278,0.00016997,2]
[398942787,1766011851155,-1959.0677939,0.00016997,2]
[398942788,1766011851164,-151.0,0.00016997,2]
[398942789,1766011851173,-500.0,0.00016999,2]
[398942790,1766011851182,-500.0,0.00016999,2]
[398942791,1766011851191,-500.0,0.00016999,2]
[398942792,1766011851200,-500.0,0.00016999,2]
[398942793,1766011851209,-500.0,0.00016999,2]
[398942794,1766011851219,-500.0,0.00016999,2]
[398942795,1766011851228,-500.0,0.00016999,2]
[398942796,1766011851237,-500.0,0.00016999,2]
[398942797,1766011851249,-467.07246893,0.00016999,2]
[398942798,1766011851259,-500.0,0.00016999,2]
[398942799,1766011851270,-500.0,0.00016999,2]
[398942800,1766011851279,-500.0,0.00016999,2]
[398942801,1766011851288,-500.0,0.00016999,2]
[398942802,1766011851298,-500.0,0.00016999,2]
[398942803,1766011851307,-500.0,0.00016999,2]
[398942804,1766011851317,-460.64,0.00016999,2]
[398942805,1766011851327,-500.0,0.00016999,2]
[398942806,1766011851338,-500.0,0.00016999,2]
[398942807,1766011851347,-500.0,0.00016999,2]
[398942808,1766011851356,-500.0,0.00016999,2]
[398942809,1766011851366,-500.0,0.00016999,2]
[398942810,1766011851375,-500.0,0.00016999,2]
[398942811,1766011851385,-236.05898136,0.00016999,2]
[398942812,1766011851394,-500.0,0.00016999,2]
[398942813,1766011851403,-500.0,0.00016999,2]
[398942814,1766011851412,-500.0,0.00016999,2]
[398942815,1766011851421,-500.0,0.00016999,2]
[398942816,1766011851430,-500.0,0.00016999,2]
[398942817,1766011851439,-500.0,0.00016999,2]
[398942818,1766011851449,-500.0,0.00016999,2]
[398942819,1766011851458,-500.0,0.00016999,2]
[398942820,1766011851467,-500.0,0.00016999,2]
[398942821,1766011851476,-500.0,0.00016999,2]
[398942822,1766011851485,-500.0,0.00016999,2]
[398942823,1766011851494,-500.0,0.00016999,2]
[398942824,1766011851504,-530.90558396,0.00016999,2]
[398942825,1766011851513,-500.0,0.00016999,2]
[398942826,1766011851523,-500.0,0.00016999,2]
[398942827,1766011851533,-500.0,0.00016999,2]
[398942828,1766011851542,-500.0,0.00016999,2]
[398942829,1766011851551,-500.0,0.00016999,2]
[398942830,1766011851560,-500.0,0.00016999,2]
[398942831,1766011851569,-500.0,0.00016999,2]
[398942832,1766011851578,-500.0,0.00016999,2]
[398942833,1766011851588,-500.0,0.00016999,2]
[398942834,1766011851597,-500.0,0.00016999,2]
[398942835,1766011851606,-629.93747903,0.00016999,2]
[398942836,1766011851615,-500.0,0.00016999,2]
[398942837,1766011851624,-641.1096514,0.00016999,2]
[398942838,1766011851633,-500.0,0.00016999,2]
[398942839,1766011851643,-500.0,0.00016999,2]
[398942840,1766011851652,-500.0,0.00016999,2]
[398942841,1766011851662,-500.0,0.00016999,2]
[398942842,1766011851672,-586.97867611,0.00016999,2]
[398942843,1766011851682,-500.0,0.00016999,2]
[398942844,1766011851691,-500.0,0.00016999,2]
[398942845,1766011851700,-500.0,0.00016999,2]
[398942846,1766011851711,-500.0,0.00016999,2]
[398942847,1766011851720,-500.0,0.00016999,2]
[398942848,1766011851730,-500.0,0.00016999,2]
[398942849,1766011851739,-500.0,0.00016999,2]
[398942850,1766011851748,-500.0,0.00016999,2]
[398942851,1766011851758,-500.0,0.00016999,2]
[398942852,1766011851767,-500.0,0.00016999,2]
[398942853,1766011851776,-500.0,0.00016999,2]
[398942854,1766011851786,-500.0,0.00016999,2]
[398942855,1766011851795,-500.0,0.00016999,2]
[398942856,1766011851804,-500.0,0.00016999,2]
[398942857,1766011851813,-500.0,0.00016999,2]
[398942858,1766011851823,-532.30126089,0.00016999,2]
[398942859,1766011851832,-500.0,0.00016999,2]
[398942860,1766011851842,-504.44339488,0.00016999,2]
[398942861,1766011851851,-500.0,0.00016999,2]
[398942862,1766011851860,-452.42388811,0.00016999,2]
[398942863,1766011851871,-500.0,0.00016999,2]
[398942864,1766011851881,-500.0,0.00016999,2]
[398942865,1766011851890,-500.0,0.00016999,2]
[398942866,1766011851900,-500.0,0.00016999,2]
[398942867,1766011851909,-500.0,0.00016999,2]
[398942868,1766011851918,-500.0,0.00016999,2]
[398942869,1766011851927,-500.0,0.00016999,2]
[398942870,1766011851936,-500.0,0.00016999,2]
[398942871,1766011851946,-500.0,0.00016999,2]
[398942872,1766011851954,-1194.59810132,0.00016999,5]
[398942873,1766011851965,-500.0,0.00016999,2]
[398942874,1766011851975,-4351657.96437416,0.00017,2]
[398942875,1766011853320,-353.43393972,0.00017,2]
[398942876,1766011853332,-403.082,0.00017,2]
[398942877,1766011853526,-668.83367395,0.000159,2]
[398942878,1766011853536,-1011.23756819,0.00017,2]
[398942879,1766011853547,-689.72524371,0.00017,2]
[398942880,1766011853562,-2349.90734264,0.00017,2]
[398942881,1766011853573,-424.80989998,0.00017,2]
[398942882,1766011853895,-371.86134031,0.00012799,2]
[398942883,1766011853911,-482.16265515,0.00012799,2]
[398942884,1766011853921,-500.0,0.00013698,2]
[398942885,1766011853931,-500.0,0.00013698,2]
[398942886,1766011853941,-500.0,0.00013698,2]
[398942887,1766011853950,-1949.78015876,0.000169,2]
[398942888,1766011853960,-453295.15982444,0.00017,2]
[398942889,1766011853976,-612.3004768,0.00017,2]
[398942890,1766011853987,-940.372799,0.00017,2]
[398942891,1766011854898,-500.0,0.00013698,2]
[398942892,1766011854907,-501471.36988735,0.00017,2]
[398942893,1766011854916,-214.88583186,0.00017,2]
[398942894,1766011854927,-742.98641339,0.00017,2]
[398942895,1766011854936,-2000.0,0.00017,2]
[398942896,1766011854945,-2000.0,0.00017,2]
[398942897,1766011854954,-2000.0,0.00017,2]
[398942898,1766011854964,-2000.0,0.00017,2]
[398942899,1766011854973,-2000.0,0.00017,2]
[398942900,1766011854982,-2000.0,0.00017,2]
[398942901,1766011854992,-2000.0,0.00017,2]
[398942902,1766011855002,-2000.0,0.00017,2]
[398942903,1766011855013,-1000.0,0.00017,2]
[398942904,1766011855023,-1000.0,0.00017,2]
[398942905,1766011855032,-1000.0,0.00017,2]
[398942906,1766011855043,-1000.0,0.00017,2]
[398942907,1766011855054,-1000.0,0.00017,2]
[398942908,1766011855072,-1000.0,0.00017,2]
[398942909,1766011855094,-1000.0,0.00017,2]
[398942910,1766011855118,-1000.0,0.00017,2]
[398942911,1766011855141,-1000.0,0.00017,2]
[398942912,1766011855161,-2000.0,0.00017,2]
[398942913,1766011855170,-2000.0,0.00017,2]
[398942914,1766011855179,-2000.0,0.00017,2]
[398942915,1766011855189,-2000.0,0.00017,2]
[398942916,1766011855199,-11323628.44955657,0.00017,2]
[398942917,1766011855209,-2000.0,0.00017,2]
[398942918,1766011855218,-200.0,0.00017,2]
[398942919,1766011855227,-151.0,0.00017,2]
[398942920,1766011855236,-151.0,0.00017,2]
[398942921,1766011855245,-151.0,0.00017,2]
[398942922,1766011855254,-200.0,0.00017,2]
[398942923,1766011855263,-151.0,0.00017,2]
[398942924,1766011855272,-151.0,0.00017,2]
[398942925,1766011855281,-151.0,0.00017,2]
[398942926,1766011855290,-151.0,0.00017,2]
[398942927,1766011855299,-151.0,0.00017,2]
[398942928,1766011855308,-151.0,0.00017,2]
[398942929,1766011855318,-151.0,0.00017,2]
[398942930,1766011855327,-181.335898,0.00017,2]
[398942931,1766011855336,-181.335898,0.00017,2]
[398942932,1766011855345,-181.335898,0.00017,2]
[398942933,1766011855354,-181.335898,0.00017,2]
[398942934,1766011855363,-181.335898,0.00017,2]
[398942935,1766011855372,-151.991642,0.00017,2]
[398942936,1766011855381,-181.335898,0.00017,2]
[398942937,1766011855391,-181.335898,0.00017,2]
[398942938,1766011855400,-181.335898,0.00017,2]
[398942939,1766011855409,-600.964048,0.00017,2]
[398942940,1766011855418,-600.964048,0.00017,2]
[398942941,1766011855427,-600.964048,0.00017,2]
[398942942,1766011855437,-600.964048,0.00017,2]
[398942943,1766011855448,-600.964048,0.00017,2]
[398942944,1766011855459,-600.964048,0.00017,2]
[398942945,1766011855469,-600.964048,0.00017,2]
[398942946,1766011855479,-600.964048,0.00017,2]
[398942947,1766011855488,-151.0,0.00017,2]
[398942948,1766011855502,-151.0,0.00017,2]
[398942949,1766011855513,-151.0,0.00017,2]
[398942950,1766011855523,-151.0,0.00017,2]
[398942951,1766011855533,-151.0,0.00017,2]
[398942952,1766011855543,-151.0,0.00017,2]
[398942953,1766011855552,-1000.0,0.00017,2]
[398942954,1766011855562,-269.251734,0.00017,2]
[398942955,1766011855572,-151.0,0.00017,2]
[398942956,1766011855581,-151.0,0.00017,2]
[398942957,1766011855592,-151.0,0.00017,2]
[398942958,1766011855601,-151.0,0.00017,2]
[398942959,1766011855611,-433.263895,0.00017,2]
[398942960,1766011855622,-433.263895,0.00017,2]
[398942961,1766011855632,-151.0,0.00017,2]
[398942962,1766011855641,-151.0,0.00017,2]
[398942963,1766011855651,-433.263895,0.00017,2]
[398942964,1766011855660,-433.263895,0.00017,2]
[398942965,1766011855670,-151.0,0.00017,2]
[398942966,1766011855679,-151.0,0.00017,2]
[398942967,1766011855688,-433.263895,0.00017,2]
[398942968,1766011855698,-433.263895,0.00017,2]
[398942969,1766011855707,-433.263895,0.00017,2]
[398942970,1766011855717,-433.263895,0.00017,2]
[398942971,1766011855727,-151.0,0.00017,2]
[398942972,1766011855736,-151.0,0.00017,2]
[398942973,1766011855746,-250.0,0.00017,2]
[398942974,1766011855755,-1047.569837,0.00017,2]
[398942975,1766011855765,-1047.569837,0.00017,2]
[398942976,1766011855774,-1047.569837,0.00017,2]
[398942977,1766011855783,-1047.569837,0.00017,2]
[398942978,1766011855794,-1047.569837,0.00017,2]
[398942979,1766011855804,-1047.569837,0.00017,2]
[398942980,1766011855813,-1047.569837,0.00017,2]
[398942981,1766011855823,-1047.569837,0.00017,2]
[398942982,1766011855832,-151.0,0.00017,2]
[398942983,1766011855841,-151.0,0.00017,2]
[398942984,1766011855850,-151.0,0.00017,2]
[398942985,1766011855860,-151.0,0.00017,2]
[398942986,1766011855869,-151.0,0.00017,2]
[398942987,1766011855879,-151.0,0.00017,2]
[398942988,1766011855889,-151.0,0.00017,2]
[398942989,1766011855898,-151.0,0.00017,2]
[398942990,1766011855907,-151.0,0.00017,2]
[398942991,1766011855917,-151.0,0.00017,2]
[398942992,1766011855926,-151.0,0.00017,2]
[398942993,1766011855935,-151.0,0.00017,2]
[398942994,1766011855944,-151.0,0.00017,2]
[398942995,1766011855954,-151.0,0.00017,2]
[398942996,1766011855963,-151.0,0.00017,2]
[398942997,1766011855972,-151.0,0.00017,2]
[398942998,1766011855982,-468.538795,0.00017,2]
[398942999,1766011855992,-468.538795,0.00017,2]
[398943000,1766011856001,-468.538795,0.00017,2]
[398943001,1766011856011,-468.538795,0.00017,2]
[398943002,1766011856021,-468.538795,0.00017,2]
[398943003,1766011856031,-468.538795,0.00017,2]
[398943004,1766011856042,-468.538795,0.00017,2]
[398943005,1766011856052,-468.538795,0.00017,2]
[398943006,1766011856063,-151.0,0.00017,2]
[398943007,1766011856074,-151.0,0.00017,2]
[398943008,1766011856083,-151.0,0.00017,2]
[398943009,1766011856093,-151.0,0.00017,2]
[398943010,1766011856103,-151.0,0.00017,2]
[398943011,1766011856113,-151.0,0.00017,2]
[398943012,1766011856122,-151.0,0.00017,2]
[398943013,1766011856132,-151.0,0.00017,2]
[398943014,1766011856142,-432.553476,0.00017,2]
[398943015,1766011856151,-432.553476,0.00017,2]
[398943016,1766011856160,-432.553476,0.00017,2]
[398943017,1766011856170,-432.553476,0.00017,2]
[398943018,1766011856179,-432.553476,0.00017,2]
[398943019,1766011856189,-432.553476,0.00017,2]
[398943020,1766011856198,-432.553476,0.00017,2]
[398943021,1766011856208,-432.553476,0.00017,2]
[398943022,1766011856218,-151.0,0.00017,2]
[398943023,1766011856228,-1659.6,0.00017002,2]
[398943024,1766011856238,-168.0,0.00017009,2]
[398943025,1766011856249,-3292.0,0.00017034,2]
[398943026,1766011856259,-298.0,0.0001705,2]
[398943027,1766011856268,-168.0,0.00017051,2]
[398943028,1766011856278,-469.7053533,0.00017052,2]
[398943029,1766011856288,-530.0,0.00017052,2]
[398943030,1766011856297,-500.0,0.00017052,2]
[398943031,1766011856306,-589.0,0.00017052,2]
[398943032,1766011856316,-150.0,0.00017052,2]
[398943033,1766011856326,-150.0,0.00017052,2]
[398943034,1766011856336,-500.0,0.00017052,2]
[398943035,1766011856345,-150.0,0.00017052,2]
[398943036,1766011856355,-500.0,0.00017052,2]
[398943037,1766011856364,-500.0,0.00017052,2]
[398943038,1766011856373,-298.0,0.00017079,2]
[398943039,1766011856383,-168.0,0.00017084,2]
[398943040,1766011856392,-150.0,0.0001711,2]
[398943041,1766011856402,-509.9852894,0.00017116,2]
[398943042,1766011856411,-200.0,0.0001717,2]
[398943043,1766011856422,-200.0,0.00017174,2]
[398943044,1766011856433,-530.0,0.00017189,2]
[398943045,1766011856443,-500.0,0.00017189,2]
[398943046,1766011856453,-589.0,0.00017189,2]
[398943047,1766011856464,-215.99937066,0.00017189,2]
[398943048,1766011856474,-259.35354361,0.00017189,2]
[398943049,1766011856485,-464.38738988,0.00017189,2]
[398943050,1766011856496,-500.0,0.00017189,2]
[398943051,1766011856506,-500.0,0.00017189,2]
[398943052,1766011856516,-1000.0,0.000172,2]
[398943053,1766011856525,-298.0,0.00017239,2]
[398943054,1766011856537,-2345.0,0.00017245,2]
[398943055,1766011856547,-574.12855637,0.00017245,2]
[398943056,1766011856556,-200.0,0.00017247,2]
[398943057,1766011856566,-500.0,0.0001726,3]
[398943058,1766011856575,-500.0,0.00017318,2]
[398943059,1766011856585,-530.0,0.00017326,2]
[398943060,1766011856594,-500.0,0.00017326,2]
[398943061,1766011856604,-589.0,0.00017326,2]
[398943062,1766011856614,-500.0,0.00017326,2]
[398943063,1766011856623,-500.0,0.00017326,2]
[398943064,1766011856632,-168.0,0.00017363,2]
[398943065,1766011856642,-346.64,0.00017373,2]
[398943066,1766011856651,-1000.0,0.000174,2]
[398943067,1766011856661,-298.0,0.0001744,2]
[398943068,1766011856671,-558.0,0.00017459,2]
[398943069,1766011856680,-530.0,0.00017463,2]
[398943070,1766011856690,-500.0,0.00017463,2]
[398943071,1766011856700,-589.0,0.00017463,2]
[398943072,1766011856709,-500.0,0.00017463,2]
[398943073,1766011856719,-500.0,0.00017463,2]
[398943074,1766011856728,-197.17,0.0001748,2]
[398943075,1766011856737,-558.0,0.00017488,2]
[398943076,1766011856747,-168.0,0.000175,2]
[398943077,1766011856756,-311.1,0.00017518,2]
[398943078,1766011856767,-152.27409135,0.00017518,2]
[398943079,1766011856776,-267.46074303,0.00017518,2]
[398943080,1766011856785,-151.0,0.00017518,2]
[398943081,1766011856795,-642.94,0.00017518,2]
[398943082,1766011856804,-1000.0,0.00017522,2]
[398943083,1766011856813,-298.0,0.00017528,2]
[398943084,1766011856823,-500.0,0.00017534,4]
[398943085,1766011856831,-600.0,0.00017534,2]
[398943086,1766011856840,-298.0,0.00017542,2]
[398943087,1766011856850,-197.17,0.00017587,2]
[398943088,1766011856859,-530.0,0.000176,2]
[398943089,1766011856868,-500.0,0.000176,2]
[398943090,1766011856877,-589.0,0.000176,2]
[398943091,1766011856886,-500.0,0.000176,2]
[398943092,1766011856895,-500.0,0.000176,2]
[398943093,1766011856904,-558.0,0.00017614,2]
[398943094,1766011856914,-298.0,0.00017628,2]
[398943095,1766011856923,-298.0,0.00017676,2]
[398943096,1766011856932,-197.16496346,0.00017693,2]
[398943097,1766011856941,-500.0,0.000177,3]
[398943098,1766011857121,-530.0,0.00017737,2]
[398943099,1766011857131,-500.0,0.00017737,2]
[398943100,1766011857142,-589.0,0.00017737,2]
[398943101,1766011857151,-500.0,0.00017737,2]
[398943102,1766011857160,-500.0,0.00017737,2]
[398943103,1766011857169,-2345.0,0.00017793,2]
[398943104,1766011857178,-595.37131296,0.00017793,2]
[398943105,1766011857187,-500.0,0.000178,2]
[398943106,1766011857197,-999.936448,0.000178,2]
[398943107,1766011857206,-500.063452,0.00017801,2]
[398943108,1766011857215,-500.0,0.00017808,5]
[398943109,1766011857224,-500.0,0.00017808,2]
[398943110,1766011857232,-500.0,0.00017808,2]
[398943111,1766011857241,-500.0,0.00017808,2]
[398943112,1766011857250,-500.0,0.00017808,2]
[398943113,1766011857259,-500.0,0.00017808,2]
[398943114,1766011857268,-500.0,0.00017808,2]
[398943115,1766011857277,-500.0,0.00017808,2]
[398943116,1766011857286,-500.0,0.00017808,2]
[398943117,1766011857297,-500.0,0.00017808,2]
[398943118,1766011857306,-500.0,0.00017808,2]
[398943119,1766011857316,-500.0,0.00017808,2]
[398943120,1766011857325,-500.0,0.00017808,2]
[398943121,1766011857334,-500.0,0.00017808,2]
[398943122,1766011857343,-500.0,0.00017808,2]
[398943123,1766011857352,-500.0,0.00017808,2]
[398943124,1766011857361,-500.0,0.00017808,2]
[398943125,1766011857370,-500.0,0.00017808,2]
[398943126,1766011857379,-500.0,0.00017808,2]
[398943127,1766011857387,-500.0,0.00017808,2]
[398943128,1766011857397,-500.0,0.00017808,2]
[398943129,1766011857406,-500.0,0.00017808,2]
[398943130,1766011857415,-600.05,0.00017808,2]
[398943131,1766011857424,-168.0,0.00017812,2]
[398943132,1766011857433,-298.0,0.00017843,2]
[398943133,1766011857442,-168.0,0.00017867,2]
[398943134,1766011857451,-530.0,0.00017874,2]
[398943135,1766011857459,-500.0,0.00017874,2]
[398943136,1766011857469,-589.0,0.00017874,2]
[398943137,1766011857478,-210.41849283,0.00017874,2]
[398943138,1766011857486,-302.03752748,0.00017874,2]
[398943139,1766011857495,-558.0,0.00017897,2]
[398943140,1766011857504,-1252.0,0.00017905,2]
[398943141,1766011857513,-298.0,0.0001793,2]
[398943142,1766011857522,-500.0,0.00017931,2]
[398943143,1766011857531,-500.0,0.00017931,2]
[398943144,1766011857540,-500.0,0.00017931,2]
[398943145,1766011857548,-1078.56,0.00017931,2]
[398943146,1766011857557,-500.0,0.00017931,2]
[398943147,1766011857566,-548.97193543,0.00017931,2]
[398943148,1766011857575,-500.0,0.00017931,2]
[398943149,1766011857585,-500.0,0.00017989,2]
[398943150,1766011857595,-500.0,0.00017989,2]
[398943151,1766011857604,-500.0,0.00017989,2]
[398943152,1766011857614,-500.0,0.00017989,2]
[398943153,1766011857624,-500.0,0.00017989,2]
[398943154,1766011857634,-500.0,0.00017989,2]
[398943155,1766011857647,-504.89372768,0.00017989,2]
[398943156,1766011857656,-500.0,0.00017989,2]
[398943157,1766011857666,-500.0,0.00017989,2]
[398943158,1766011857676,-500.0,0.00017989,2]
[398943159,1766011857685,-500.0,0.00017989,2]
[398943160,1766011857695,-500.0,0.00017989,2]
[398943161,1766011857706,-500.0,0.00017989,2]
[398943162,1766011857716,-500.0,0.00017989,2]
[398943163,1766011857726,-500.0,0.00017989,2]
[398943164,1766011857735,-500.0,0.00017989,2]
[398943165,1766011857744,-500.0,0.00017989,2]
[398943166,1766011857754,-485.82893465,0.00017993,7]
[398943167,1766011857763,-150.0,0.00017993,7]
[398943168,1766011857773,-500.0,0.00017999,2]
[398943169,1766011857782,-440.9981114,0.00017999,2]
[398943170,1766011857791,-500.0,0.00017999,2]
[398943171,1766011857800,-500.0,0.00017999,2]
[398943172,1766011857809,-500.0,0.00017999,2]
[398943173,1766011857819,-500.0,0.00017999,2]
[398943174,1766011857829,-500.0,0.00017999,2]
[398943175,1766011857838,-500.0,0.00017999,2]
[398943176,1766011857847,-500.0,0.00017999,2]
[398943177,1766011857856,-1078.56,0.00017999,2]
[398943178,1766011857865,-309.99245647,0.00017999,2]
[398943179,1766011857874,-500.0,0.00017999,2]
[398943180,1766011857883,-504.05914821,0.00017999,2]
[398943181,1766011857892,-500.0,0.00017999,2]
[398943182,1766011857901,-500.0,0.00017999,2]
[398943183,1766011857910,-500.0,0.00017999,2]
[398943184,1766011857919,-500.0,0.00017999,2]
[398943185,1766011857928,-500.0,0.00017999,2]
[398943186,1766011857937,-500.0,0.00017999,2]
[398943187,1766011857947,-500.0,0.00017999,2]
[398943188,1766011857956,-410062.84337096,0.00018,2]
[398943189,1766011857965,-1381.63380115,0.00018,2]
[398943190,1766011857974,-530.0,0.00018011,2]
[398943191,1766011857983,-500.0,0.00018011,2]
[398943192,1766011857993,-589.0,0.00018011,2]
[398943193,1766011858002,-346.64,0.00018041,2]
[398943194,1766011858011,-165.66,0.00018072,2]
[398943195,1766011858019,-500.0,0.00018082,6]
[398943196,1766011858028,-1000.0,0.00018082,2]
[398943197,1766011858037,-600.0,0.00018082,2]
[398943198,1766011858046,-530.0,0.00018148,2]
[398943199,1766011858055,-413.17870048,0.00018148,2]
[398943200,1766011858069,-589.0,0.00018148,2]
[398943201,1766011858078,-168.0,0.00018195,2]
[398943202,1766011858087,-165.66,0.00018247,2]
[398943203,1766011858096,-168.0,0.0001827,2]
[398943204,1766011858106,-530.0,0.00018285,2]
[398943205,1766011858116,-589.0,0.00018285,2]
[398943206,1766011858125,-7000.0,0.000183,2]
[398943207,1766011858135,-2345.0,0.00018341,2]
[398943208,1766011858146,-617.40005154,0.00018341,2]
[398943209,1766011858155,-500.0,0.00018356,7]
[398943210,1766011858164,-215.0738,0.0001837,2]
[398943211,1766011858174,-1600.0,0.00018417,2]
[398943212,1766011858183,-530.0,0.00018422,2]
[398943213,1766011858193,-589.0,0.00018422,2]
[398943214,1766011858203,-1152.0,0.00018526,2]
[398943215,1766011858212,-530.0,0.00018559,2]
[398943216,1766011858222,-589.0,0.00018559,2]